[Event "Titled Tuesday Blitz March 21 Late 2023"]
[White "Gholami Orimi, Mahdi"]
[Black "Stankovic, Ivan G"]
[WhiteFideId "12558486"]
[BlackFideId "902837"]
[WhiteElo "2363"]
[BlackElo "2234"]
[Result "1-0"]
[Round "01"]
[TimeControl "180+2"]
[Date "2023.03.21"]
[WhiteClock "0:02:38"]
[BlackClock "0:02:06"]

1. d4 {[%clk 0:02:58]}  d5 {[%clk 0:02:59]} 2. c4 {[%clk 0:02:58]}  c6 {[%clk 0:02:59]} 3. Nf3 {[%clk 0:02:57]}  Nf6 {[%clk 0:02:59]} 4. Nc3 {[%clk 0:02:44]}  a6 {[%clk 0:02:59]} 5. c5 {[%clk 0:02:44]}  Nbd7 {[%clk 0:02:59]} 6. Bf4 {[%clk 0:02:45]}  Nh5 {[%clk 0:03:00]} 7. Be3 {[%clk 0:02:43]}  Qc7 {[%clk 0:03:00]} 8. g3 {[%clk 0:02:43]}  e5 {[%clk 0:02:55]} 9. Nxe5 {[%clk 0:02:43]}  Nxe5 {[%clk 0:02:55]} 10. dxe5 {[%clk 0:02:44]}  Qxe5 {[%clk 0:02:53]} 11. Bg2 {[%clk 0:02:44]}  Be7 {[%clk 0:02:45]} 12. Bd4 {[%clk 0:02:45]}  Qc7 {[%clk 0:02:41]} 13. O-O {[%clk 0:02:44]}  Nf6 {[%clk 0:02:36]} 14. e4 {[%clk 0:02:43]}  dxe4 {[%clk 0:02:36]} 15. Nxe4 {[%clk 0:02:43]}  Nxe4 {[%clk 0:02:33]} 16. Bxe4 {[%clk 0:02:42]}  O-O {[%clk 0:02:22]} 17. Qh5 {[%clk 0:02:42]}  f5 {[%clk 0:02:16]} 18. Bc2 {[%clk 0:02:40]}  g6 {[%clk 0:02:06]} 19. Bb3+ {[%clk 0:02:38]} 1-0


[Site "https://www.chess.com"]

[Event "Titled Tuesday Blitz March 21 Late 2023"]
[White "Sztokbant, Bernardo Vainzoff"]
[Black "Kozak, Adam"]
[WhiteFideId "2115956"]
[BlackFideId "753246"]
[WhiteElo "2222"]
[BlackElo "2469"]
[Result "0-1"]
[Round "01"]
[TimeControl "180+2"]
[Date "2023.03.21"]
[WhiteClock "0:00:01"]
[BlackClock "0:00:46"]

1. e4 {[%clk 0:02:55]}  b5 {[%clk 0:02:57]} 2. d4 {[%clk 0:02:54]}  Bb7 {[%clk 0:02:57]} 3. Bxb5 {[%clk 0:02:51]}  Bxe4 {[%clk 0:02:56]} 4. Nf3 {[%clk 0:02:52]}  Nf6 {[%clk 0:02:55]} 5. Nc3 {[%clk 0:02:51]}  Bxf3 {[%clk 0:02:53]} 6. Qxf3 {[%clk 0:02:51]}  c6 {[%clk 0:02:54]} 7. Bd3 {[%clk 0:02:50]}  e6 {[%clk 0:02:54]} 8. O-O {[%clk 0:02:43]}  d5 {[%clk 0:02:53]} 9. Re1 {[%clk 0:02:42]}  Be7 {[%clk 0:02:50]} 10. Qg3 {[%clk 0:02:36]}  O-O {[%clk 0:02:31]} 11. Bh6 {[%clk 0:02:32]}  Ne8 {[%clk 0:02:31]} 12. Ne2 {[%clk 0:02:26]}  Bh4 {[%clk 0:02:24]} 13. Qg4 {[%clk 0:02:26]}  f5 {[%clk 0:02:24]} 14. Qh5 {[%clk 0:02:23]}  gxh6 {[%clk 0:02:18]} 15. Nf4 {[%clk 0:02:23]}  Qg5 {[%clk 0:02:14]} 16. Qf3 {[%clk 0:01:51]}  Ng7 {[%clk 0:01:59]} 17. g3 {[%clk 0:01:45]}  Qg4 {[%clk 0:01:59]} 18. Qg2 {[%clk 0:01:15]}  Bd8 {[%clk 0:01:34]} 19. f3 {[%clk 0:00:59]}  Qg5 {[%clk 0:01:32]} 20. Nxe6 {[%clk 0:01:00]}  Nxe6 {[%clk 0:01:26]} 21. Rxe6 {[%clk 0:01:01]}  Bb6 {[%clk 0:01:25]} 22. c3 {[%clk 0:00:54]}  Nd7 {[%clk 0:01:24]} 23. Rxc6 {[%clk 0:00:53]}  Qe3+ {[%clk 0:01:23]} 24. Kh1 {[%clk 0:00:53]}  Qxd3 {[%clk 0:01:23]} 25. f4 {[%clk 0:00:53]}  Qe4 {[%clk 0:01:23]} 26. Rd6 {[%clk 0:00:51]}  Nf6 {[%clk 0:01:21]} 27. a4 {[%clk 0:00:46]}  Rad8 {[%clk 0:01:15]} 28. Rc6 {[%clk 0:00:43]}  Rc8 {[%clk 0:01:15]} 29. Rd6 {[%clk 0:00:43]}  Qe7 {[%clk 0:01:04]} 30. Rxf6 {[%clk 0:00:31]}  Qxf6 {[%clk 0:01:03]} 31. a5 {[%clk 0:00:32]}  Qe6 {[%clk 0:00:58]} 32. axb6 {[%clk 0:00:22]}  axb6 {[%clk 0:00:58]} 33. Qh3 {[%clk 0:00:15]}  Ra8 {[%clk 0:00:56]} 34. Rf1 {[%clk 0:00:10]}  Kh8 {[%clk 0:00:53]} 35. Qh5 {[%clk 0:00:06]}  Rg8 {[%clk 0:00:52]} 36. Qh4 {[%clk 0:00:03]}  Rae8 {[%clk 0:00:50]} 37. Qh3 {[%clk 0:00:03]}  Rg6 {[%clk 0:00:49]} 38. Qh4 {[%clk 0:00:03]}  Qe2 {[%clk 0:00:47]} 39. Kg1 {[%clk 0:00:01]}  Qg4 {[%clk 0:00:46]} 0-1


[Site "https://www.chess.com"]

[Event "Titled Tuesday Blitz March 21 Late 2023"]
[White "Shohat, Yotam"]
[Black "Zhigalko, Sergei"]
[WhiteFideId "2813955"]
[BlackFideId "13502956"]
[WhiteElo "2226"]
[BlackElo "2626"]
[Result "1/2-1/2"]
[Round "01"]
[TimeControl "180+2"]
[Date "2023.03.21"]
[WhiteClock "0:00:02"]
[BlackClock "0:00:03"]

1. e4 {[%clk 0:03:00]}  c5 {[%clk 0:02:59]} 2. Nf3 {[%clk 0:02:57]}  Nc6 {[%clk 0:03:00]} 3. Nc3 {[%clk 0:02:57]}  Nf6 {[%clk 0:03:00]} 4. d4 {[%clk 0:02:55]}  cxd4 {[%clk 0:03:00]} 5. Nxd4 {[%clk 0:02:56]}  e5 {[%clk 0:03:00]} 6. Ndb5 {[%clk 0:02:55]}  d6 {[%clk 0:03:00]} 7. Bg5 {[%clk 0:02:50]}  a6 {[%clk 0:03:01]} 8. Na3 {[%clk 0:02:48]}  b5 {[%clk 0:03:01]} 9. Nd5 {[%clk 0:02:48]}  Be7 {[%clk 0:03:02]} 10. Bxf6 {[%clk 0:02:47]}  Bxf6 {[%clk 0:03:02]} 11. c4 {[%clk 0:02:46]}  b4 {[%clk 0:03:01]} 12. Nc2 {[%clk 0:02:46]}  O-O {[%clk 0:03:01]} 13. g3 {[%clk 0:02:45]}  a5 {[%clk 0:03:01]} 14. Bg2 {[%clk 0:02:43]}  Bg5 {[%clk 0:03:01]} 15. O-O {[%clk 0:02:30]}  Be6 {[%clk 0:02:28]} 16. h4 {[%clk 0:02:25]}  Bh6 {[%clk 0:02:28]} 17. Qd3 {[%clk 0:02:18]}  Rb8 {[%clk 0:02:25]} 18. b3 {[%clk 0:02:17]}  Kh8 {[%clk 0:02:24]} 19. Rad1 {[%clk 0:02:11]}  Qd7 {[%clk 0:02:24]} 20. Nce3 {[%clk 0:01:37]}  Nd4 {[%clk 0:02:18]} 21. Nc2 {[%clk 0:01:25]}  Nc6 {[%clk 0:02:18]} 22. Nce3 {[%clk 0:01:24]}  Bxe3 {[%clk 0:02:14]} 23. Nxe3 {[%clk 0:01:24]}  Rfd8 {[%clk 0:02:07]} 24. Rd2 {[%clk 0:01:23]}  Qa7 {[%clk 0:02:03]} 25. h5 {[%clk 0:01:18]}  h6 {[%clk 0:02:03]} 26. Nf5 {[%clk 0:01:16]}  f6 {[%clk 0:01:55]} 27. Nxd6 {[%clk 0:00:54]}  Nd4 {[%clk 0:00:19]} 28. Nb5 {[%clk 0:00:54]}  Qf7 {[%clk 0:00:12]} 29. Nxd4 {[%clk 0:00:25]}  Rxd4 {[%clk 0:00:13]} 30. Qe3 {[%clk 0:00:25]}  Rbd8 {[%clk 0:00:12]} 31. Rfd1 {[%clk 0:00:24]}  Rxd2 {[%clk 0:00:05]} 32. Rxd2 {[%clk 0:00:25]}  Rxd2 {[%clk 0:00:05]} 33. Qxd2 {[%clk 0:00:26]}  Qxh5 {[%clk 0:00:06]} 34. c5 {[%clk 0:00:26]}  Qe8 {[%clk 0:00:04]} 35. Qd6 {[%clk 0:00:25]}  Bd7 {[%clk 0:00:03]} 36. Bf1 {[%clk 0:00:20]}  Bc6 {[%clk 0:00:03]} 37. f3 {[%clk 0:00:20]}  Kh7 {[%clk 0:00:03]} 38. Bc4 {[%clk 0:00:20]}  Bd7 {[%clk 0:00:02]} 39. Bd5 {[%clk 0:00:20]}  Bb5 {[%clk 0:00:02]} 40. c6 {[%clk 0:00:18]}  Qg6 {[%clk 0:00:02]} 41. Kf2 {[%clk 0:00:17]}  Qg5 {[%clk 0:00:02]} 42. Be6 {[%clk 0:00:12]}  h5 {[%clk 0:00:01]} 43. Bf5+ {[%clk 0:00:11]}  g6 {[%clk 0:00:01]} 44. Qe7+ {[%clk 0:00:10]}  Kh6 {[%clk 0:00:01]} 45. Qf8+ {[%clk 0:00:10]}  Kh7 {[%clk 0:00:02]} 46. Qe7+ {[%clk 0:00:04]}  Kh6 {[%clk 0:00:02]} 47. Qf8+ {[%clk 0:00:03]}  Kh7 {[%clk 0:00:03]} 48. Qf7+ {[%clk 0:00:04]}  Kh6 {[%clk 0:00:03]} 49. Qf8+ {[%clk 0:00:02]} 1/2-1/2


[Site "https://www.chess.com"]

[Event "Titled Tuesday Blitz March 21 Late 2023"]
[White "Svane, Frederik"]
[Black "Astafurov, Arseniy"]
[WhiteFideId "12923044"]
[BlackFideId "24175218"]
[WhiteElo "2502"]
[BlackElo "2163"]
[Result "1-0"]
[Round "01"]
[TimeControl "180+2"]
[Date "2023.03.21"]
[WhiteClock "0:00:15"]
[BlackClock "0:00:02"]

1. b3 {[%clk 0:03:00]}  e5 {[%clk 0:02:58]} 2. Bb2 {[%clk 0:02:59]}  Nc6 {[%clk 0:02:59]} 3. e3 {[%clk 0:02:59]}  Nf6 {[%clk 0:02:59]} 4. Bb5 {[%clk 0:02:56]}  Bd6 {[%clk 0:02:59]} 5. Ne2 {[%clk 0:02:55]}  O-O {[%clk 0:02:40]} 6. O-O {[%clk 0:02:55]}  e4 {[%clk 0:02:36]} 7. Ng3 {[%clk 0:02:45]}  Be5 {[%clk 0:02:31]} 8. Bxe5 {[%clk 0:02:40]}  Nxe5 {[%clk 0:02:32]} 9. d4 {[%clk 0:02:41]}  exd3 {[%clk 0:02:31]} 10. cxd3 {[%clk 0:02:39]}  d5 {[%clk 0:02:04]} 11. d4 {[%clk 0:02:39]}  Ng6 {[%clk 0:02:04]} 12. Nc3 {[%clk 0:02:40]}  c6 {[%clk 0:02:04]} 13. Bd3 {[%clk 0:02:40]}  Re8 {[%clk 0:02:05]} 14. Rc1 {[%clk 0:02:41]}  Qe7 {[%clk 0:01:36]} 15. Qd2 {[%clk 0:02:38]}  Ng4 {[%clk 0:01:00]} 16. h3 {[%clk 0:02:26]}  Nf6 {[%clk 0:01:00]} 17. Rfe1 {[%clk 0:02:23]}  Nh4 {[%clk 0:00:55]} 18. Qe2 {[%clk 0:01:38]}  Be6 {[%clk 0:00:51]} 19. Na4 {[%clk 0:01:35]}  Rad8 {[%clk 0:00:50]} 20. Nc5 {[%clk 0:01:35]}  Bc8 {[%clk 0:00:50]} 21. b4 {[%clk 0:01:32]}  a6 {[%clk 0:00:50]} 22. a4 {[%clk 0:01:32]}  Qd6 {[%clk 0:00:39]} 23. b5 {[%clk 0:01:29]}  cxb5 {[%clk 0:00:40]} 24. axb5 {[%clk 0:01:30]}  a5 {[%clk 0:00:41]} 25. Bb1 {[%clk 0:01:14]}  b6 {[%clk 0:00:40]} 26. Nd3 {[%clk 0:01:14]}  Ne4 {[%clk 0:00:39]} 27. Nxe4 {[%clk 0:01:05]}  dxe4 {[%clk 0:00:40]} 28. Rc6 {[%clk 0:00:32]}  Qd5 {[%clk 0:00:25]} 29. Nf4 {[%clk 0:00:28]}  Qg5 {[%clk 0:00:19]} 30. Kh2 {[%clk 0:00:21]}  Bd7 {[%clk 0:00:08]} 31. Rxb6 {[%clk 0:00:20]}  Rb8 {[%clk 0:00:09]} 32. Rxb8 {[%clk 0:00:19]}  Rxb8 {[%clk 0:00:10]} 33. Bxe4 {[%clk 0:00:19]}  Bxb5 {[%clk 0:00:09]} 34. Rb1 {[%clk 0:00:18]}  h6 {[%clk 0:00:08]} 35. Bd3 {[%clk 0:00:16]}  a4 {[%clk 0:00:03]} 36. Rxb5 {[%clk 0:00:16]}  Rxb5 {[%clk 0:00:03]} 37. Bxb5 {[%clk 0:00:17]}  a3 {[%clk 0:00:04]} 38. Bc4 {[%clk 0:00:18]}  Qa5 {[%clk 0:00:04]} 39. Qh5 {[%clk 0:00:16]}  Qa7 {[%clk 0:00:02]} 40. Qxh4 {[%clk 0:00:16]}  a2 {[%clk 0:00:02]} 41. Bxa2 {[%clk 0:00:15]} 1-0


[Site "https://www.chess.com"]

[Event "Titled Tuesday Blitz March 21 Late 2023"]
[White "Khandelwal, Ankush"]
[Black "Chigaev, Maksim"]
[WhiteFideId "413470"]
[BlackFideId "4108116"]
[WhiteElo "2263"]
[BlackElo "2547"]
[Result "0-1"]
[Round "01"]
[TimeControl "180+2"]
[Date "2023.03.21"]
[WhiteClock "0:00:17"]
[BlackClock "0:00:34"]

1. e4 {[%clk 0:03:00]}  c5 {[%clk 0:02:59]} 2. Nf3 {[%clk 0:03:00]}  Nc6 {[%clk 0:03:00]} 3. Bb5 {[%clk 0:02:58]}  e6 {[%clk 0:03:00]} 4. O-O {[%clk 0:02:48]}  Nge7 {[%clk 0:03:00]} 5. c3 {[%clk 0:02:44]}  a6 {[%clk 0:02:58]} 6. Ba4 {[%clk 0:02:41]}  b5 {[%clk 0:02:58]} 7. Bc2 {[%clk 0:02:41]}  Bb7 {[%clk 0:02:54]} 8. Qe2 {[%clk 0:02:38]}  d5 {[%clk 0:02:45]} 9. e5 {[%clk 0:02:33]}  d4 {[%clk 0:02:41]} 10. Be4 {[%clk 0:02:25]}  Ng6 {[%clk 0:02:22]} 11. cxd4 {[%clk 0:02:17]}  Qd7 {[%clk 0:02:02]} 12. dxc5 {[%clk 0:01:52]}  Bxc5 {[%clk 0:01:51]} 13. d3 {[%clk 0:01:29]}  Nd4 {[%clk 0:01:50]} 14. Nxd4 {[%clk 0:01:27]}  Bxd4 {[%clk 0:01:51]} 15. Nc3 {[%clk 0:01:06]}  Bxe4 {[%clk 0:01:38]} 16. Nxe4 {[%clk 0:01:06]}  O-O {[%clk 0:01:31]} 17. Be3 {[%clk 0:00:47]}  Bxe5 {[%clk 0:01:13]} 18. Rfd1 {[%clk 0:00:30]}  Bd4 {[%clk 0:01:08]} 19. Nc5 {[%clk 0:00:31]}  Qd5 {[%clk 0:01:07]} 20. Bxd4 {[%clk 0:00:31]}  Qxd4 {[%clk 0:01:07]} 21. Nb3 {[%clk 0:00:32]}  Qd5 {[%clk 0:01:06]} 22. Rac1 {[%clk 0:00:32]}  Nf4 {[%clk 0:01:04]} 23. Qe4 {[%clk 0:00:33]}  Qxe4 {[%clk 0:01:04]} 24. dxe4 {[%clk 0:00:33]}  Ne2+ {[%clk 0:01:05]} 25. Kf1 {[%clk 0:00:34]}  Nxc1 {[%clk 0:01:06]} 26. Rxc1 {[%clk 0:00:35]}  Rac8 {[%clk 0:01:06]} 27. Rd1 {[%clk 0:00:35]}  Rfd8 {[%clk 0:01:06]} 28. Rxd8+ {[%clk 0:00:32]}  Rxd8 {[%clk 0:01:07]} 29. Ke2 {[%clk 0:00:33]}  Rc8 {[%clk 0:01:03]} 30. Kd3 {[%clk 0:00:32]}  e5 {[%clk 0:01:03]} 31. f3 {[%clk 0:00:30]}  Kf8 {[%clk 0:01:04]} 32. Kd2 {[%clk 0:00:29]}  Ke7 {[%clk 0:01:04]} 33. Nc1 {[%clk 0:00:29]}  Ke6 {[%clk 0:01:01]} 34. Nd3 {[%clk 0:00:29]}  f5 {[%clk 0:01:00]} 35. exf5+ {[%clk 0:00:27]}  Kxf5 {[%clk 0:01:01]} 36. b4 {[%clk 0:00:28]}  h5 {[%clk 0:00:59]} 37. Nc5 {[%clk 0:00:27]}  a5 {[%clk 0:00:58]} 38. a3 {[%clk 0:00:28]}  axb4 {[%clk 0:00:58]} 39. axb4 {[%clk 0:00:29]}  Rd8+ {[%clk 0:00:58]} 40. Ke2 {[%clk 0:00:28]}  Rd4 {[%clk 0:00:58]} 41. Nd3 {[%clk 0:00:28]}  e4 {[%clk 0:00:58]} 42. fxe4+ {[%clk 0:00:29]}  Rxe4+ {[%clk 0:00:58]} 43. Kf3 {[%clk 0:00:27]}  Rd4 {[%clk 0:00:56]} 44. Ke3 {[%clk 0:00:28]}  Rc4 {[%clk 0:00:56]} 45. g3 {[%clk 0:00:26]}  g5 {[%clk 0:00:56]} 46. Kf3 {[%clk 0:00:23]}  Re4 {[%clk 0:00:51]} 47. h3 {[%clk 0:00:21]}  g4+ {[%clk 0:00:48]} 48. hxg4+ {[%clk 0:00:22]}  hxg4+ {[%clk 0:00:49]} 49. Kf2 {[%clk 0:00:23]}  Kg5 {[%clk 0:00:38]} 50. Kg2 {[%clk 0:00:14]}  Rd4 {[%clk 0:00:31]} 51. Nf4 {[%clk 0:00:14]}  Rxf4 {[%clk 0:00:30]} 52. gxf4+ {[%clk 0:00:14]}  Kxf4 {[%clk 0:00:31]} 53. Kf2 {[%clk 0:00:13]}  Ke4 {[%clk 0:00:31]} 54. Kg3 {[%clk 0:00:14]}  Kd4 {[%clk 0:00:31]} 55. Kxg4 {[%clk 0:00:15]}  Kc4 {[%clk 0:00:32]} 56. Kf3 {[%clk 0:00:15]}  Kxb4 {[%clk 0:00:33]} 57. Ke2 {[%clk 0:00:16]}  Kc3 {[%clk 0:00:33]} 58. Kd1 {[%clk 0:00:17]}  Kb2 {[%clk 0:00:34]} 0-1


[Site "https://www.chess.com"]

[Event "Titled Tuesday Blitz March 21 Late 2023"]
[White "reevecanada"]
[Black "Durarbayli, Vasif"]
[BlackFideId "13402935"]
[WhiteElo "2482"]
[BlackElo "2543"]
[Result "0-1"]
[Round "01"]
[TimeControl "180+2"]
[Date "2023.03.21"]
[WhiteClock "0:00:05"]
[BlackClock "0:01:00"]

1. e4 {[%clk 0:02:54]}  c5 {[%clk 0:02:59]} 2. Nf3 {[%clk 0:02:48]}  d6 {[%clk 0:02:59]} 3. d4 {[%clk 0:02:46]}  cxd4 {[%clk 0:03:00]} 4. Qxd4 {[%clk 0:02:46]}  Nf6 {[%clk 0:03:00]} 5. c4 {[%clk 0:02:44]}  g6 {[%clk 0:02:59]} 6. Nc3 {[%clk 0:02:43]}  Bg7 {[%clk 0:03:00]} 7. Be2 {[%clk 0:02:42]}  O-O {[%clk 0:03:00]} 8. O-O {[%clk 0:02:42]}  Be6 {[%clk 0:02:55]} 9. Rb1 {[%clk 0:02:41]}  Nd5 {[%clk 0:02:46]} 10. Qd3 {[%clk 0:02:31]}  Nxc3 {[%clk 0:02:42]} 11. bxc3 {[%clk 0:02:30]}  Nd7 {[%clk 0:02:42]} 12. Nd4 {[%clk 0:02:28]}  Ne5 {[%clk 0:02:40]} 13. Nxe6 {[%clk 0:02:26]}  fxe6 {[%clk 0:02:41]} 14. Qh3 {[%clk 0:02:26]}  Qc8 {[%clk 0:02:41]} 15. f4 {[%clk 0:02:19]}  Nxc4 {[%clk 0:02:41]} 16. Rb4 {[%clk 0:02:18]}  Nb6 {[%clk 0:02:37]} 17. Bb2 {[%clk 0:02:09]}  e5 {[%clk 0:02:26]} 18. f5 {[%clk 0:02:08]}  d5 {[%clk 0:02:16]} 19. Bg4 {[%clk 0:01:47]}  Nc4 {[%clk 0:02:15]} 20. exd5 {[%clk 0:01:39]}  Qc5+ {[%clk 0:01:44]} 21. Kh1 {[%clk 0:01:37]}  Ne3 {[%clk 0:01:41]} 22. f6 {[%clk 0:00:57]}  Nxg4 {[%clk 0:01:30]} 23. Qxg4 {[%clk 0:00:54]}  Rxf6 {[%clk 0:01:31]} 24. Rxf6 {[%clk 0:00:52]}  Bxf6 {[%clk 0:01:29]} 25. Qe6+ {[%clk 0:00:52]}  Kg7 {[%clk 0:01:26]} 26. Rxb7 {[%clk 0:00:50]}  Rd8 {[%clk 0:01:10]} 27. c4 {[%clk 0:00:43]}  Qxc4 {[%clk 0:01:10]} 28. Rxe7+ {[%clk 0:00:41]}  Bxe7 {[%clk 0:01:10]} 29. Qxe7+ {[%clk 0:00:40]}  Kh6 {[%clk 0:01:10]} 30. Qh4+ {[%clk 0:00:19]}  Qxh4 {[%clk 0:01:08]} 31. h3 {[%clk 0:00:09]}  Rxd5 {[%clk 0:01:02]} 32. Bc1+ {[%clk 0:00:09]}  Kg7 {[%clk 0:01:02]} 33. Be3 {[%clk 0:00:10]}  Qe1+ {[%clk 0:00:58]} 34. Kh2 {[%clk 0:00:09]}  Rd1 {[%clk 0:00:59]} 35. Bg1 {[%clk 0:00:08]}  Qxg1+ {[%clk 0:00:59]} 36. Kg3 {[%clk 0:00:09]}  Qe3+ {[%clk 0:00:58]} 37. Kh4 {[%clk 0:00:09]}  Qf4+ {[%clk 0:00:59]} 38. g4 {[%clk 0:00:09]}  Rd3 {[%clk 0:00:59]} 39. a4 {[%clk 0:00:05]}  Qh6# {[%clk 0:01:00]} 0-1


[Site "https://www.chess.com"]

[Event "Titled Tuesday Blitz March 21 Late 2023"]
[White "Gharibyan, Mamikon"]
[Black "Remolar Gallen, Jose"]
[WhiteFideId "13308300"]
[BlackFideId "2215187"]
[WhiteElo "2445"]
[BlackElo "2223"]
[Result "0-1"]
[Round "01"]
[TimeControl "180+2"]
[Date "2023.03.21"]
[WhiteClock "0:00:05"]
[BlackClock "0:00:08"]

1. e4 {[%clk 0:02:59]}  c5 {[%clk 0:02:59]} 2. Nf3 {[%clk 0:02:58]}  d6 {[%clk 0:02:59]} 3. d4 {[%clk 0:02:58]}  cxd4 {[%clk 0:03:00]} 4. Qxd4 {[%clk 0:02:58]}  Nc6 {[%clk 0:02:59]} 5. Bb5 {[%clk 0:02:57]}  e5 {[%clk 0:02:57]} 6. Qd3 {[%clk 0:02:48]}  h6 {[%clk 0:02:55]} 7. Nc3 {[%clk 0:02:44]}  Nf6 {[%clk 0:02:55]} 8. O-O {[%clk 0:02:43]}  Be7 {[%clk 0:02:46]} 9. h3 {[%clk 0:02:43]}  O-O {[%clk 0:02:46]} 10. Be3 {[%clk 0:02:43]}  Be6 {[%clk 0:02:43]} 11. a3 {[%clk 0:02:40]}  a6 {[%clk 0:02:25]} 12. Bc4 {[%clk 0:02:30]}  b5 {[%clk 0:02:20]} 13. Bd5 {[%clk 0:02:25]}  Rc8 {[%clk 0:02:13]} 14. Rad1 {[%clk 0:02:18]}  Qa5 {[%clk 0:01:38]} 15. Na2 {[%clk 0:02:05]}  Rfd8 {[%clk 0:01:23]} 16. Bd2 {[%clk 0:01:51]}  Qb6 {[%clk 0:01:21]} 17. Bxe6 {[%clk 0:01:47]}  fxe6 {[%clk 0:01:21]} 18. Nh4 {[%clk 0:01:47]}  d5 {[%clk 0:01:15]} 19. exd5 {[%clk 0:01:47]}  exd5 {[%clk 0:01:09]} 20. Ng6 {[%clk 0:01:44]}  Bc5 {[%clk 0:01:07]} 21. Nb4 {[%clk 0:01:39]}  Nxb4 {[%clk 0:01:05]} 22. axb4 {[%clk 0:01:40]}  Bd6 {[%clk 0:01:04]} 23. c3 {[%clk 0:01:33]}  Qc6 {[%clk 0:01:01]} 24. Rfe1 {[%clk 0:01:31]}  Re8 {[%clk 0:01:00]} 25. Qf5 {[%clk 0:01:26]}  Qd7 {[%clk 0:00:55]} 26. Qxd7 {[%clk 0:01:19]}  Nxd7 {[%clk 0:00:56]} 27. Be3 {[%clk 0:01:20]}  Nf6 {[%clk 0:00:51]} 28. Nh4 {[%clk 0:01:17]}  Rcd8 {[%clk 0:00:38]} 29. Ra1 {[%clk 0:01:16]}  Ra8 {[%clk 0:00:35]} 30. Nf5 {[%clk 0:01:11]}  Bf8 {[%clk 0:00:33]} 31. Ra2 {[%clk 0:01:11]}  d4 {[%clk 0:00:26]} 32. cxd4 {[%clk 0:01:09]}  Bxb4 {[%clk 0:00:25]} 33. Rea1 {[%clk 0:01:08]}  exd4 {[%clk 0:00:24]} 34. Nxd4 {[%clk 0:01:01]}  Nd5 {[%clk 0:00:19]} 35. Rxa6 {[%clk 0:00:19]}  Rxa6 {[%clk 0:00:19]} 36. Rxa6 {[%clk 0:00:20]}  Nxe3 {[%clk 0:00:20]} 37. fxe3 {[%clk 0:00:21]}  Rxe3 {[%clk 0:00:20]} 38. Nxb5 {[%clk 0:00:20]}  Rb3 {[%clk 0:00:20]} 39. Nc7 {[%clk 0:00:11]}  Rxb2 {[%clk 0:00:16]} 40. Ne6 {[%clk 0:00:11]}  Re2 {[%clk 0:00:12]} 41. Ra8+ {[%clk 0:00:10]}  Kf7 {[%clk 0:00:11]} 42. Nf4 {[%clk 0:00:10]}  Bc5+ {[%clk 0:00:11]} 43. Kh1 {[%clk 0:00:06]}  Re1+ {[%clk 0:00:11]} 44. Kh2 {[%clk 0:00:06]}  Bd6 {[%clk 0:00:11]} 45. g3 {[%clk 0:00:07]}  g5 {[%clk 0:00:09]} 46. Ra7+ {[%clk 0:00:07]}  Ke8 {[%clk 0:00:06]} 47. Nh5 {[%clk 0:00:06]}  Re2+ {[%clk 0:00:06]} 48. Kg1 {[%clk 0:00:07]}  Bc5+ {[%clk 0:00:06]} 49. Kf1 {[%clk 0:00:07]}  Rf2+ {[%clk 0:00:07]} 50. Ke1 {[%clk 0:00:05]}  Bxa7 {[%clk 0:00:08]} 51. Ng7+ {[%clk 0:00:05]}  Kf7 {[%clk 0:00:08]} 0-1


[Site "https://www.chess.com"]

[Event "Titled Tuesday Blitz March 21 Late 2023"]
[White "Kubatko, Ivan"]
[Black "Drygalov, Andrey"]
[WhiteFideId "24111473"]
[BlackFideId "24171735"]
[WhiteElo "2285"]
[BlackElo "2471"]
[Result "0-1"]
[Round "01"]
[TimeControl "180+2"]
[Date "2023.03.21"]
[WhiteClock "0:00:49"]
[BlackClock "0:01:45"]

1. e4 {[%clk 0:02:59]}  c5 {[%clk 0:02:59]} 2. c3 {[%clk 0:02:55]}  Nf6 {[%clk 0:02:59]} 3. e5 {[%clk 0:02:55]}  Nd5 {[%clk 0:02:59]} 4. d4 {[%clk 0:02:55]}  cxd4 {[%clk 0:02:59]} 5. cxd4 {[%clk 0:02:55]}  e6 {[%clk 0:03:00]} 6. Nf3 {[%clk 0:02:53]}  d6 {[%clk 0:03:00]} 7. Bd3 {[%clk 0:02:45]}  Bd7 {[%clk 0:02:59]} 8. O-O {[%clk 0:02:44]}  Bc6 {[%clk 0:02:59]} 9. a3 {[%clk 0:02:44]}  Nd7 {[%clk 0:02:59]} 10. Re1 {[%clk 0:02:37]}  Be7 {[%clk 0:02:55]} 11. Nbd2 {[%clk 0:02:29]}  dxe5 {[%clk 0:02:48]} 12. dxe5 {[%clk 0:02:24]}  Nc5 {[%clk 0:02:46]} 13. Bc2 {[%clk 0:02:23]}  Nf4 {[%clk 0:02:44]} 14. Nc4 {[%clk 0:01:54]}  Nfd3 {[%clk 0:02:20]} 15. Nd6+ {[%clk 0:01:44]}  Bxd6 {[%clk 0:02:18]} 16. Bxd3 {[%clk 0:01:44]}  Nxd3 {[%clk 0:02:15]} 17. Qxd3 {[%clk 0:01:44]}  Bc5 {[%clk 0:02:14]} 18. Qe2 {[%clk 0:01:30]}  O-O {[%clk 0:02:10]} 19. b4 {[%clk 0:01:30]}  Be7 {[%clk 0:02:06]} 20. Be3 {[%clk 0:01:19]}  Bd5 {[%clk 0:02:05]} 21. Rac1 {[%clk 0:01:17]}  a5 {[%clk 0:02:03]} 22. Bc5 {[%clk 0:01:16]}  axb4 {[%clk 0:02:03]} 23. axb4 {[%clk 0:01:16]}  Ra3 {[%clk 0:02:00]} 24. Nd4 {[%clk 0:00:53]}  Bxc5 {[%clk 0:01:52]} 25. Rxc5 {[%clk 0:00:52]}  Bxg2 {[%clk 0:01:47]} 26. Nb5 {[%clk 0:00:49]}  Bf3 {[%clk 0:01:45]} 0-1


[Site "https://www.chess.com"]

[Event "Titled Tuesday Blitz March 21 Late 2023"]
[White "Perez Ponsa, Federico"]
[Black "Guliev, Logman"]
[WhiteFideId "117927"]
[BlackFideId "13400061"]
[WhiteElo "2592"]
[BlackElo "2161"]
[Result "1-0"]
[Round "01"]
[TimeControl "180+2"]
[Date "2023.03.21"]
[WhiteClock "0:00:54"]
[BlackClock "0:00:22"]

1. e4 {[%clk 0:02:57]}  e5 {[%clk 0:02:58]} 2. Nf3 {[%clk 0:02:56]}  Nc6 {[%clk 0:02:58]} 3. Bc4 {[%clk 0:02:56]}  Nf6 {[%clk 0:02:58]} 4. d3 {[%clk 0:02:55]}  Be7 {[%clk 0:02:55]} 5. O-O {[%clk 0:02:55]}  d6 {[%clk 0:02:55]} 6. a4 {[%clk 0:02:55]}  Bg4 {[%clk 0:02:52]} 7. c3 {[%clk 0:02:51]}  O-O {[%clk 0:02:52]} 8. h3 {[%clk 0:02:50]}  Bh5 {[%clk 0:02:51]} 9. Nbd2 {[%clk 0:02:50]}  a6 {[%clk 0:02:49]} 10. Re1 {[%clk 0:02:49]}  d5 {[%clk 0:02:44]} 11. exd5 {[%clk 0:02:45]}  Nxd5 {[%clk 0:02:44]} 12. Ne4 {[%clk 0:02:45]}  Kh8 {[%clk 0:02:35]} 13. Ng3 {[%clk 0:02:45]}  Bg6 {[%clk 0:02:27]} 14. Nxe5 {[%clk 0:02:44]}  Nxe5 {[%clk 0:02:26]} 15. Rxe5 {[%clk 0:02:45]}  Nb6 {[%clk 0:02:21]} 16. Bb3 {[%clk 0:02:31]}  Bf6 {[%clk 0:02:05]} 17. Re3 {[%clk 0:02:27]}  c5 {[%clk 0:01:54]} 18. a5 {[%clk 0:02:26]}  Nd5 {[%clk 0:01:48]} 19. Re1 {[%clk 0:02:26]}  Nc7 {[%clk 0:01:41]} 20. Ne4 {[%clk 0:02:19]}  Bh4 {[%clk 0:01:32]} 21. Nxc5 {[%clk 0:02:08]}  Qf6 {[%clk 0:01:30]} 22. Be3 {[%clk 0:02:00]}  Rad8 {[%clk 0:01:30]} 23. Qg4 {[%clk 0:01:50]}  Bf5 {[%clk 0:01:19]} 24. Qf3 {[%clk 0:01:45]}  Qg6 {[%clk 0:01:16]} 25. Ra4 {[%clk 0:01:30]}  Be7 {[%clk 0:01:04]} 26. Rf4 {[%clk 0:01:18]}  Bxd3 {[%clk 0:00:42]} 27. Nxd3 {[%clk 0:01:01]}  Rxd3 {[%clk 0:00:37]} 28. Bc2 {[%clk 0:00:54]}  Rxe3 {[%clk 0:00:32]} 29. Qxe3 {[%clk 0:00:55]}  Qxc2 {[%clk 0:00:24]} 30. Qxe7 {[%clk 0:00:55]}  Rc8 {[%clk 0:00:22]} 31. Qxc7 {[%clk 0:00:54]} 1-0


[Site "https://www.chess.com"]